Cogmind - Beta 12 @@@ ROGUE MODE // 2023.04.25 @ 13:36:01 Player: Mr Goldstein Result: Destroyed by G-34 Mercenary with Small Laser Performance ------------- Evolutions (0) 0 Regions Visited (1) 200 Robots Destroyed (0) 0 Value Destroyed (0) 0 Prototype IDs (0) 0 Alien Tech Used (0) 0 Bonus (0) 0 TOTAL SCORE: 200 Bonus ------- None Cogmind --------- Core Integrity 0/250 Matter 150/300 Energy 99/100 System Corruption 0% Temperature Cool (15) Movement Core (50) Location -10/Materials Parts ------- > --- POWER (1) -------- (None) > --- PROPULSION (2) --- (None) > --- UTILITY (2) ------ (None) > --- WEAPON (2) ------- (None) > --- INVENTORY (5) ---- (None) Peak State ------------ None Favorites ----------- Power None Propulsion None Utility None Weapon None Build | -11 -10 ------- Run | Jun Mat Slots Evolved . | . . Power . | . . Propulsion . | . . Utility . | . . Weapon . | . . Parts Attached . | . . Power . | . . Engine . | . . Core . | . . Reactor . | . . Propulsion . | . . Treads . | . . Leg . | . . Wheel . | . . Hover . | . . Flight . | . . Utility . | . . Device . | . . Storage . | . . Processor . | . . Hackware . | . . Protection . | . . Artifact . | . . Weapon . | . . Energy Gun . | . . Energy Cannon . | . . Ballistic Gun . | . . Ballistic Cannon . | . . Launcher . | . . Special Weapon . | . . Impact Weapon . | . . Slashing Weapon . | . . Piercing Weapon . | . . Special Melee Weapon . | . . Unidentified Prototypes . | . . Parts Lost . | . . Power . | . . Propulsion . | . . Utility . | . . Weapon . | . . Highest Loss Streak . | . . To Critical Strikes . | . . Average Slot Usage (%) . | . . Naked Turns 46 | . 46 Heaviest Build . | . . Greatest Support 3 | 3 3 Greatest Overweight (x) . | . . Average Overweight (x) . | . . Largest Inventory Capacity 5 | 5 5 Average Capacity 5 | 5 5 Most Carried . | . . Average Carried . | . . Final Capacity 5 | 5 5 Final Carried . | . . Class Distribution -------------------- 100% | Mutant Dominant Class ---------------- Mutant | -10/Materials Resources | -11 -10 ----------- Run | Jun Mat Matter Collected 44 | 44 . Remotely . | . . Salvage Created . | . . Parts . | . . Haulers Intercepted . | . . Recyclers Shooed . | . . Parts Field Recycled . | . . Retrieved Matter . | . . Parts Self-Destructed . | . . Prevented . | . . Kills | -11 -10 ------- Run | Jun Mat Combat Hostiles Destroyed . | . . Classes Destroyed . | . . Best Kill Streak . | . . Combat Bots Only . | . . Max Kills in Single Turn . | . . Gunslinging . | . . Exploded . | . . Melee . | . . Uniques/NPCs Destroyed . | . . Combat | -11 -10 -------- Run | Jun Mat Damage Taken 259 | . 259 Core 259 | . 259 Absorbed by Shields . | . . Core Remaining (%) 100 | 100 . Volleys Fired . | . . Largest . | . . Hottest . | . . Shots Fired . | . . Gun . | . . Cannon . | . . Launcher . | . . Special . | . . Kinetic . | . . Thermal . | . . Explosive . | . . Electromagnetic . | . . Robot Hit Streak . | . . Robot Miss Streak . | . . Penetration Max . | . . Secondary Targets . | . . Shots Hit Robots . | . . Core Hits . | . . Critical Kills . | . . Critical Parts Destroyed . | . . Critical Strikes . | . . Melee Attacks . | . . Impact . | . . Slashing . | . . Piercing . | . . Sneak Attacks . | . . Combat Hostiles . | . . Follow-up Attacks . | . . Damage Inflicted 7 | . 7 Guns . | . . Cannons . | . . Explosions . | . . Melee . | . . Ramming 7 | . 7 Kinetic . | . . Thermal . | . . Explosive . | . . Electromagnetic . | . . Impact . | . . Slashing . | . . Piercing . | . . Highest Corruption . | . . Average Corruption . | . . Corruption Purged . | . . Corruption Blocked . | . . Overload Shots . | . . Overflow Damage . | . . Projectiles . | . . Explosions . | . . Melee . | . . Knockbacks 1 | . 1 Impact 1 | . 1 Kinetic . | . . Secondary . | . . Self-Inflicted Damage 3 | . 3 Shots . | . . Rammed 2 | . 2 Targets Rammed 2 | . 2 Kicked . | . . Crushed . | . . Highest Temperature . | . . Average Temperature . | . . Received Heat Transfer 141 | . 141 Siege Activations . | . . Robots Corrupted . | . . Combat Hostiles . | . . Parts Fried . | . . Impact Corruptions . | . . Robots Melted . | . . Combat Hostiles . | . . Parts Melted . | . . Heat Transferred . | . . Parts Sabotaged . | . . Parts Stolen . | . . Parts Stripped . | . . Power Chain Reactions . | . . Missiles Intercepted . | . . Alert | -11 -10 ------- Run | Jun Mat Peak Influence 90 | . 90 Initial . | . . Average 22 | . 26 Maximum Alert Level . | . . Low Security (%) 100 | 100 100 Level 1 . | . . Level 2 . | . . Level 3 . | . . Level 4 . | . . Level 5 . | . . High Security . | . . Max Security . | . . Squads Dispatched 3 | . 3 Investigation 2 | . 2 Extermination . | . . Reinforcement 1 | . 1 Assault . | . . Garrison . | . . Intercept . | . . Searches Triggered . | . . Construction Impeded . | . . Haulers Reinforced . | . . Active Scanning Responses . | . . Cargo Convoy Interrupts . | . . Stealth | -11 -10 --------- Run | Jun Mat Distress Signals 1 | . 1 Communications Jammed . | . . Distress Signals . | . . Times Spotted 14 | . 14 Peak Tracking Total 12 | . 12 Tactical Retreats . | . . Traps | -11 -10 ------- Run | Jun Mat Traps Triggered 1 | . 1 Indirectly . | . . Trap Hack Attempts . | . . Triggered . | . . Disarmed . | . . Reprogrammed . | . . Reused . | . . Traps Extracted . | . . Installed . | . . Triggered . | . . Machines | -11 -10 ---------- Run | Jun Mat Machines Disabled . | . . Max in Single Turn . | . . Machines Repaired . | . . Machines Sabotaged . | . . Overloaded Fab Kills . | . . Hacking | -11 -10 --------- Run | Jun Mat Machines Accessed 2 | . 2 Terminals 1 | . 1 Fabricators . | . . Repair Stations . | . . Recycling Units 1 | . 1 Scanalyzers . | . . Garrison Access . | . . Total Hacks 2 | . 2 Successful 2 | . 2 Failed . | . . Catastrophic . | . . Database Lockouts . | . . Manual 2 | . 2 Terminals 1 | . 1 Fabricators . | . . Repair Stations . | . . Recycling Units 1 | . 1 Scanalyzers . | . . Garrison Access . | . . Terminal Hacks . | . . Fabricator Hacks . | . . Repair Station Hacks . | . . Recycling Unit Hacks . | . . Scanalyzer . | . . Garrison Access Hacks . | . . Unauthorized Hacks 2 | . 2 Terminals 1 | . 1 Search 1 | . 1 Fabricators . | . . Repair Stations . | . . Recycling Units 1 | . 1 Tunnel 1 | . 1 Scanalyzers . | . . Garrison Access . | . . Data Cores Recovered . | . . Used . | . . Hacking Detections . | . . Full Trace Events . | . . Feedback Events . | . . Feedback Blocked . | . . Robot Schematics Acquired . | . . Robots Built . | . . Authchips . | . . Time . | . . Total Robot Build Rating . | . . Part Schematics Acquired . | . . Parts Built . | . . Authchips . | . . Time . | . . Total Part Build Rating . | . . Parts Repaired . | . . Time . | . . Parts Recycled . | . . Recycled Matter . | . . Retrieved Matter . | . . Retrieved Components . | . . Parts Scanalyzed . | . . Part Schematics Acquired . | . . Parts Damaged . | . . Bothacking | -11 -10 ------------ Run | Jun Mat Used RIF Installer . | . . Robots Hacked . | . . Non-combat . | . . Combat . | . . Robot Hacks Applied . | . . Relay Couplers Released . | . . Fabnet Peak Effective % . | . . Robots Rewired . | . . Allies Hacked . | . . Hacks Repelled . | . . Allies | -11 -10 -------- Run | Jun Mat Total Allies . | . . Largest Group . | . . Highest-Rated Group . | . . Highest-Rated Ally . | . . Total Orders . | . . Ally Attacks . | . . Total Damage . | . . Kills . | . . Allies Corrupted . | . . Allies Melted . | . . Intel | -11 -10 ------- Run | Jun Mat Robot Analysis Total . | . . Derelict Logs Recovered . | . . Drone Launches . | . . Drone Recoveries . | . . Exploration | -11 -10 ------------- Run | Jun Mat Turns Passed 55 | 9 46 Spaces Moved 106 | 19 87 Core 106 | 19 87 Treads . | . . Legs . | . . Wheels . | . . Hover . | . . Flight . | . . Fastest Speed 50 | 50 50 Average Speed 50 | 50 50 Slowest Speed 50 | 50 50 Overloaded Moves . | . . Propulsion Burnouts . | . . Robots Hopped . | . . Cave-ins Triggered . | . . Exploration Rate (%) 17 | 3 32 Regions Visited 1 Branch Regions . Pre-discovered Areas 1 | . 1 Known Exits Taken . | . . Unknown Exits Taken 1 | 1 . Scrap Searched . | . . Spaces Dug . | . . Terrain Destroyed . | . . Melee . | . . Projectile . | . . AOE . | . . Terrain Rammed . | . . Walls Destroyed . | . . Machines Disabled . | . . Actions | -11 -10 --------- Run | Jun Mat Total 107 | 18 89 Wait . | . . Move 105 | 18 87 Hop . | . . Pick Up . | . . Fast Attach . | . . Attach . | . . Detach . | . . Swap . | . . Drop . | . . Fire . | . . Melee . | . . Ram 2 | . 2 Kick . | . . Crush . | . . Escape Stasis . | . . Rewire . | . . Trap . | . . Miscellaneous . | . . Route ------- -11/Junkyard -10/Materials (discovered 2 exits: [*Mat] / [*Min]) History --------- Turn | Location | Event 3 | -11/Junkyard | Discovered new exit (range 15) 10 | -11/Junkyard | Entered Materials 32 | -10/Materials | Discovered new exit (range 7) 46 | -10/Materials | Discovered new exit (range 10) 48 | -10/Materials | Core integrity fell below 50% 56 | -10/Materials | Core integrity fell below 20% 56 | -10/Materials | Destroyed by G-34 Mercenary with Small Laser Last Messages --------------- COORDINATES_EXTRACTED 00033_ ALERT: Suspicious activity at Terminal M001. Dispatching Investigation squad. 00034_ O-16 Technician: "IFF HANDSHAKE FAILED. SECURING TERMINAL." 00035_ O-16 Technician uses terminal to summon reinforcements. 00035_ ALERT: Hostiles spotted, dispatching reinforcements to Terminal M007. 00035_ O-16 Technician locks terminal. 00036_ Triggered Blade Trap. 00036_ Massive razor-sharp blades shoot up from within the floor. 00044_ Slammed into R-06 Scavenger. 00046_ EXIT=FOUND 00046_ K-01 Serf collects debris. 00051_ Connecting with Recycling Unit... >>Force(Tunnel) DISCOVERED[-8/Storage] 00051_ ALERT: Suspicious activity at Recycling Unit M001. Dispatching Investigation squad. 00053_ Slammed into G-34 Mercenary. 00053_ G-34 Mercenary knocked back. Map ----- +----------------------------------------------------+ | | | | | | | | | | | | | | | | | | | | | | | | | | | | | | | | | ?????????????????????????????????????????????????? | | ?????????????????????????????????????????????????? | | ?????????????????????????????????????????????????? | | ?????????????????????????????##########??????????? | | ?????????????????????????????# #??????????? | | ???????????????????????####### ! "" #??????????? | | ????????????????####+### # [ Y" #??????????? | | ????????????????# g# "" #??????????? | | ????????????????# < g g + #??????????? | | ????????????????# g g@g g# |! #??????????? | | ????????????????####+### g # !! #??????????? | | ???????????????????????##w ## ! #??????????? | | ????????????????????????# ## #??????????? | | ????????????????????????# #############????????? | | ????????????????????????# #????????? | | ?????????????????????#### / "??????? | | ???????????????????# #????????? | | ???????????????????# #### #### """ #????????? | | ????????????????????????#####??# """ #????????? | | ???????????????????????????????# """ #????????? | | ???????????????????????????????# #????????? | | ???????????????????????????????+ #????????? | | ???????????????????????????????# """ #????????? | | ???????????????????????????????# ! """ #????????? | | ???????????????????????????????# """ #?????###? | | ???????????????????????????????# #######T## | | ???????????????????"############ | | ?????????????????? """ | | ?????????????????? """ | | ?????????????????? """ ##### | | ?????????????????? #???? | | ?????????????????? #???? | | ??????????????????? ########## "T" #???? | | ???????????????????????????????# #### #???? | +----------------------------------------------------+ Best States ------------- Heat Dissipation 25 Energy Generation 5 Energy Capacity 100 Matter Stores 146 Matter Capacity 300 Sight Range 16 Terrain Scan Density 10 Evasion (%) 50 Item Schematics ----------------- None Robot Schematics ------------------ None Fabricated ------------ Nothing Alien Tech Used ----------------- None Achievements -------------- None Challenges ------------ None Game ------ Seed TachyonGuidanceCharge Manual? 0 Play Time 00:01:22 Cumulative 139.8 hours Start 2023.04.25 @ 13:35:17 End 2023.04.25 @ 13:36:01 Sessions 1 Manual Loads 0 Difficulty Rogue Special Mode None Game No. 410 Rogue 410 Adventurer 0 Explorer 0 Win Type - Total 5 Types 5/0/0/0/0/0/0/0/0 Lore% 62 Gallery% 68 Achievement% 58 Wizard Run 0 Options --------- ASCII 0 Keyboard 0 Movement Numpad Keybinds 0 Fullscreen 1 Font 16/SmallcapsGlow Map View 75x55 Tactical HUD 1 Map Filters NONE Filters NONE Steam 1 RUN: 5d60855b-2b17-4026-bed4-cf72a51ef013